fUST/lending_fUST_20250901
["ID","MTS","AMOUNT","RATE_DAILY","PERIOD"]
[382618751,1756679466120,-480.0,0.00017495,2]
[382618752,1756679466131,-501.85,0.00017495,2]
[382618753,1756679466143,-480.0,0.00017495,2]
[382618754,1756679466157,-801.5,0.00017495,2]
[382618755,1756679466170,-914.88,0.00017495,2]
[382618756,1756679466183,-929.01,0.00017495,2]
[382618757,1756679466195,-988.27,0.00017495,2]
[382618758,1756679466209,-480.0,0.00017495,2]
[382618759,1756679466222,-480.0,0.00017495,2]
[382618760,1756679466235,-1109.5,0.00017495,2]
[382618761,1756679466246,-926.74,0.00017495,2]
[382618762,1756679466259,-480.0,0.00017495,2]
[382618763,1756679466270,-480.0,0.00017495,2]
[382618764,1756679466281,-480.0,0.00017495,2]
[382618765,1756679466295,-480.0,0.00017495,2]
[382618766,1756679466308,-480.0,0.00017495,2]
[382618767,1756679466321,-345.358856,0.00017495,2]
[382618768,1756679466335,-345.358856,0.00017495,2]
[382618769,1756679466346,-345.358856,0.00017495,2]
[382618770,1756679466358,-345.358856,0.00017495,2]
[382618771,1756679466371,-480.0,0.00017495,2]
[382618772,1756679466383,-1718.87,0.00017495,2]
[382618773,1756679466394,-480.0,0.00017495,2]
[382618774,1756679466406,-480.0,0.00017495,2]
[382618775,1756679466418,-606.05,0.00017495,2]
[382618776,1756679466431,-151.0,0.00017495,2]
[382618777,1756679466442,-151.0,0.00017495,2]
[382618778,1756679466454,-480.0,0.00017495,2]
[382618779,1756679466466,-480.0,0.00017495,2]
[382618780,1756679466477,-151.0,0.00017495,2]
[382618781,1756679466488,-151.0,0.00017495,2]
[382618782,1756679466499,-293.103662,0.00017495,2]
[382618783,1756679466510,-1152.04,0.00017495,2]
[382618784,1756679466521,-480.0,0.00017495,2]
[382618785,1756679466534,-1683.33860553,0.00017496,2]
[382618786,1756679466545,-175.9,0.000175,2]
[382618787,1756679466558,-452.545513,0.00017565,2]
[382618788,1756679466570,-335.70535892,0.00017565,2]
[382618789,1756679466581,-762.55523368,0.00017574,2]
[382618790,1756679466592,-151.0,0.00017587,2]
[382618791,1756679466604,-151.0,0.00017587,2]
[382618792,1756679466615,-151.0,0.00017587,2]
[382618793,1756679466626,-2309.0,0.00017587,2]
[382618794,1756679466637,-225.18697532,0.00017588,2]
[382618795,1756679466648,-1201.4,0.00017595,2]
[382618796,1756679466661,-1201.4,0.00017595,2]
[382618797,1756679466673,-1201.4,0.00017595,2]
[382618798,1756679466684,-1201.4,0.00017595,2]
[382618799,1756679466695,-1201.43629578,0.00017595,2]
[382618800,1756679466707,-151.0,0.00017595,2]
[382618801,1756679466718,-1873.42,0.00017595,2]
[382618802,1756679466729,-480.0,0.00017595,2]
[382618803,1756679466741,-1038.32,0.00017595,2]
[382618804,1756679466752,-151.0,0.00017595,2]
[382618805,1756679466764,-193.694951,0.00017595,2]
[382618806,1756679466776,-660.29,0.00017595,2]
[382618807,1756679466787,-196.009368,0.00017595,2]
[382618808,1756679466798,-196.009368,0.00017595,2]
[382618809,1756679466810,-196.009368,0.00017595,2]
[382618810,1756679466821,-196.009368,0.00017595,2]
[382618811,1756679466832,-1302.48,0.00017595,2]
[382618812,1756679466843,-383.5,0.00017595,2]
[382618813,1756679466854,-480.0,0.00017595,2]
[382618814,1756679466865,-480.0,0.00017595,2]
[382618815,1756679466876,-604.96,0.00017595,2]
[382618816,1756679466889,-623.86,0.00017596,2]
[382618817,1756679466900,-788.33,0.00017596,2]
[382618818,1756679466911,-480.0,0.00017596,2]
[382618819,1756679466922,-480.0,0.00017596,2]
[382618820,1756679466933,-523.58,0.00017596,2]
[382618821,1756679466946,-480.0,0.00017596,2]
[382618822,1756679466958,-480.0,0.00017596,2]
[382618823,1756679466969,-480.0,0.00017596,2]
[382618824,1756679466980,-480.0,0.00017596,2]
[382618825,1756679466991,-480.0,0.00017596,2]
[382618826,1756679467002,-302.72998139,0.00017596,2]
[382618827,1756679467013,-480.0,0.00017596,2]
[382618828,1756679467024,-151.0,0.00017596,2]
[382618829,1756679467036,-480.0,0.00017596,2]
[382618830,1756679467048,-480.0,0.00017596,2]
[382618831,1756679467059,-913.17,0.00017596,2]
[382618832,1756679467071,-480.0,0.00017596,2]
[382618833,1756679467081,-480.0,0.00017596,2]
[382618834,1756679467092,-985.71,0.00017596,2]
[382618835,1756679467103,-480.0,0.00017596,2]
[382618836,1756679467114,-1008.43,0.00017596,2]
[382618837,1756679467125,-480.0,0.00017596,2]
[382618838,1756679467137,-151.0,0.00017596,2]
[382618839,1756679467148,-480.0,0.00017596,2]
[382618840,1756679467159,-1229.74,0.00017596,2]
[382618841,1756679467171,-151.0,0.00017596,2]
[382618842,1756679467182,-159.342596,0.00017596,2]
[382618843,1756679467193,-159.342596,0.00017596,2]
[382618844,1756679467204,-159.342596,0.00017596,2]
[382618845,1756679467215,-480.0,0.00017596,2]
[382618846,1756679467227,-159.342596,0.00017596,2]
[382618847,1756679467240,-480.0,0.00017596,2]
[382618848,1756679467251,-563.89,0.00017596,2]
[382618849,1756679467263,-959.0,0.00017596,2]
[382618850,1756679467275,-599.96,0.00017596,2]
[382618851,1756679467286,-1001.25,0.00017596,2]
[382618852,1756679467297,-480.0,0.00017596,2]
[382618853,1756679467311,-790.77,0.00017596,2]
[382618854,1756679467322,-480.0,0.00017596,2]
[382618855,1756679467334,-333.83539052,0.00017596,2]
[382618856,1756679467346,-480.0,0.00017596,2]
[382618857,1756679467357,-444.12,0.00017596,2]
[382618858,1756679467368,-494.82,0.00017596,2]
[382618859,1756679467379,-480.0,0.00017596,2]
[382618860,1756679467391,-480.0,0.00017596,2]
[382618861,1756679467402,-480.0,0.00017596,2]
[382618862,1756679467413,-480.0,0.00017596,2]
[382618863,1756679467424,-480.0,0.00017596,2]
[382618864,1756679467435,-480.0,0.00017596,2]
[382618865,1756679467446,-480.0,0.00017596,2]
[382618866,1756679467458,-480.0,0.00017596,2]
[382618867,1756679467472,-480.0,0.00017596,2]
[382618868,1756679467484,-341.9,0.00017596,2]
[382618869,1756679467495,-480.0,0.00017596,2]
[382618870,1756679467506,-480.0,0.00017596,2]
[382618871,1756679467517,-480.0,0.00017596,2]
[382618872,1756679467529,-427.78250325,0.00017596,2]
[382618873,1756679467540,-480.0,0.00017596,2]
[382618874,1756679467551,-381.14,0.00017596,2]
[382618875,1756679467562,-444.02830925,0.00017596,2]
[382618876,1756679467573,-616.69400632,0.00017596,2]
[382618877,1756679467584,-480.0,0.00017596,2]
[382618878,1756679467596,-480.0,0.00017596,2]
[382618879,1756679467606,-480.0,0.00017596,2]
[382618880,1756679467618,-480.0,0.00017596,2]
[382618881,1756679467629,-480.0,0.00017596,2]
[382618882,1756679467640,-480.0,0.00017596,2]
[382618883,1756679467652,-480.0,0.00017596,2]
[382618884,1756679467664,-480.0,0.00017596,2]
[382618885,1756679467675,-480.0,0.00017596,2]
[382618886,1756679467687,-935.27,0.00017596,2]
[382618887,1756679467699,-480.0,0.00017596,2]
[382618888,1756679467710,-988.75,0.00017596,2]
[382618889,1756679467721,-480.0,0.00017596,2]
[382618890,1756679467732,-480.0,0.00017596,2]
[382618891,1756679467742,-803.92,0.00017596,2]
[382618892,1756679467754,-513.55,0.00017596,2]
[382618893,1756679467765,-892.63,0.00017596,2]
[382618894,1756679467776,-480.0,0.00017596,2]
[382618895,1756679467788,-813.46,0.00017596,2]
[382618896,1756679467799,-755.62,0.00017596,2]
[382618897,1756679467810,-480.0,0.00017596,2]
[382618898,1756679467821,-480.0,0.00017596,2]
[382618899,1756679467833,-812.44,0.00017596,2]
[382618900,1756679467845,-1969.67,0.00017596,2]
[382618901,1756679467857,-480.0,0.00017596,2]
[382618902,1756679467869,-500.0,0.00017596,2]
[382618903,1756679467880,-480.0,0.00017596,2]
[382618904,1756679467893,-606.37,0.00017596,2]
[382618905,1756679467904,-480.0,0.00017596,2]
[382618906,1756679468142,-480.0,0.00017596,2]
[382618907,1756679468153,-915.34,0.00017596,2]
[382618908,1756679468163,-480.0,0.00017596,2]
[382618909,1756679468172,-480.0,0.00017596,2]
[382618910,1756679468183,-622.73,0.00017596,2]
[382618911,1756679468193,-464.37647076,0.00017596,2]
[382618912,1756679468203,-480.0,0.00017596,2]
[382618913,1756679468212,-951.37,0.00017596,2]
[382618914,1756679468222,-833.72,0.00017596,2]
[382618915,1756679468232,-480.0,0.00017596,2]
[382618916,1756679468241,-480.0,0.00017596,2]
[382618917,1756679468251,-480.0,0.00017596,2]
[382618918,1756679468266,-480.0,0.00017596,2]
[382618919,1756679468276,-480.0,0.00017596,2]
[382618920,1756679468286,-480.0,0.00017596,2]
[382618921,1756679468304,-526.5,0.00017596,2]
[382618922,1756679468313,-732.56,0.00017596,2]
[382618923,1756679468326,-481.45,0.00017596,2]
[382618924,1756679468336,-480.0,0.00017596,2]
[382618925,1756679468346,-4272.48,0.00017596,2]
[382618926,1756679468355,-1977.22,0.00017596,2]
[382618927,1756679468366,-480.0,0.00017596,2]
[382618928,1756679468375,-480.0,0.00017596,2]
[382618929,1756679468384,-480.0,0.00017596,2]
[382618930,1756679468394,-480.0,0.00017596,2]
[382618931,1756679468403,-1190.84,0.00017596,2]
[382618932,1756679468413,-480.0,0.00017596,2]
[382618933,1756679468423,-480.0,0.00017596,2]
[382618934,1756679468432,-690.47,0.00017596,2]
[382618935,1756679468443,-1575.69,0.00017596,2]
[382618936,1756679468452,-1980.13,0.00017596,2]
[382618937,1756679468462,-480.0,0.00017596,2]
[382618938,1756679468471,-480.0,0.00017596,2]
[382618939,1756679468481,-500.78,0.00017596,2]
[382618940,1756679468490,-792.5,0.00017596,2]
[382618941,1756679468499,-480.0,0.00017596,2]
[382618942,1756679468508,-480.0,0.00017596,2]
[382618943,1756679468518,-777.66,0.00017596,2]
[382618944,1756679468528,-480.0,0.00017596,2]
[382618945,1756679468538,-480.0,0.00017596,2]
[382618946,1756679468548,-538.27,0.00017596,2]
[382618947,1756679468558,-481.7,0.00017596,2]
[382618948,1756679468567,-940.63,0.00017596,2]
[382618949,1756679468577,-480.0,0.00017596,2]
[382618950,1756679468586,-480.0,0.00017596,2]
[382618951,1756679468596,-747.13,0.00017596,2]
[382618952,1756679468605,-151.0,0.00017596,2]
[382618953,1756679468615,-795.55,0.00017596,2]
[382618954,1756679468625,-480.0,0.00017596,2]
[382618955,1756679468634,-606.07,0.00017596,2]
[382618956,1756679468645,-480.0,0.00017596,2]
[382618957,1756679468655,-165.37089005,0.00017597,2]
[382618958,1756679468665,-512.0,0.00017597,2]
[382618959,1756679468675,-500.0,0.00017597,2]
[382618960,1756679468684,-500.0,0.00017597,2]
[382618961,1756679468695,-480.0,0.00017597,2]
[382618962,1756679468704,-480.0,0.00017597,2]
[382618963,1756679468715,-884.24,0.00017597,2]
[382618964,1756679468725,-519.61,0.00017597,2]
[382618965,1756679468736,-480.0,0.00017597,2]
[382618966,1756679468746,-480.0,0.00017597,2]
[382618967,1756679468758,-480.0,0.00017597,2]
[382618968,1756679468768,-480.0,0.00017597,2]
[382618969,1756679468778,-480.0,0.00017597,2]
[382618970,1756679468788,-480.0,0.00017597,2]
[382618971,1756679468799,-505.05,0.00017597,2]
[382618972,1756679468808,-480.0,0.00017597,2]
[382618973,1756679468819,-480.0,0.00017597,2]
[382618974,1756679468830,-480.0,0.00017597,2]
[382618975,1756679468840,-494.44,0.00017597,2]
[382618976,1756679468850,-480.0,0.00017597,2]
[382618977,1756679468859,-480.0,0.00017597,2]
[382618978,1756679468869,-151.0,0.00017597,2]
[382618979,1756679468879,-151.0,0.00017597,2]
[382618980,1756679468889,-289.739314,0.00017597,2]
[382618981,1756679468898,-151.0,0.00017597,2]
[382618982,1756679468908,-151.0,0.00017597,2]
[382618983,1756679468917,-151.0,0.00017597,2]
[382618984,1756679468926,-480.0,0.00017597,2]
[382618985,1756679468935,-676.04,0.00017597,2]
[382618986,1756679468945,-559.84,0.00017597,2]
[382618987,1756679468955,-480.0,0.00017597,2]
[382618988,1756679468964,-157.444891,0.00017597,2]
[382618989,1756679468974,-361.12958997,0.00017597,2]
[382618990,1756679468983,-151.0,0.00017597,2]
[382618991,1756679468993,-480.0,0.00017597,2]
[382618992,1756679469003,-480.0,0.00017597,2]
[382618993,1756679469012,-480.0,0.00017597,2]
[382618994,1756679469022,-480.0,0.00017597,2]
[382618995,1756679469032,-480.0,0.00017597,2]
[382618996,1756679469042,-480.0,0.00017597,2]
[382618997,1756679469052,-480.0,0.00017597,2]
[382618998,1756679469061,-1040.07,0.00017597,2]
[382618999,1756679469071,-480.0,0.00017597,2]
[382619000,1756679469081,-480.0,0.00017597,2]
[382619001,1756679469090,-565.45,0.00017597,2]
[382619002,1756679469100,-480.0,0.00017597,2]
[382619003,1756679469110,-866.45,0.00017597,2]
[382619004,1756679469119,-480.0,0.00017597,2]
[382619005,1756679469129,-6102.28,0.00017597,2]
[382619006,1756679469138,-488.33,0.00017597,2]
[382619007,1756679469149,-480.0,0.00017597,2]
[382619008,1756679469159,-480.0,0.00017597,2]
[382619009,1756679469168,-1340.55,0.00017597,2]
[382619010,1756679469178,-480.0,0.00017597,2]
[382619011,1756679469188,-1237.62,0.00017597,2]
[382619012,1756679469197,-480.0,0.00017597,2]
[382619013,1756679469207,-290.01900254,0.00017597,2]
[382619014,1756679469217,-4649.07,0.00017597,2]
[382619015,1756679469227,-583.5,0.00017597,2]
[382619016,1756679469236,-480.0,0.00017597,2]
[382619017,1756679469246,-5403.0,0.00017597,2]
[382619018,1756679469256,-480.0,0.00017597,2]
[382619019,1756679469266,-480.0,0.00017597,2]
[382619020,1756679469276,-480.0,0.00017597,2]
[382619021,1756679469289,-480.0,0.00017597,2]
[382619022,1756679469299,-1152.65,0.00017597,2]
[382619023,1756679469309,-480.0,0.00017597,2]
[382619024,1756679469318,-480.0,0.00017597,2]
[382619025,1756679469327,-151.0,0.00017597,2]
[382619026,1756679469337,-333.91199684,0.00017597,2]
[382619027,1756679469347,-480.0,0.00017597,2]
[382619028,1756679469357,-480.0,0.00017597,2]
[382619029,1756679469367,-480.0,0.00017597,2]
[382619030,1756679469376,-480.0,0.00017597,2]
[382619031,1756679469387,-172.580756,0.00017597,2]
[382619032,1756679469397,-172.580756,0.00017597,2]
[382619033,1756679469406,-172.580756,0.00017597,2]
[382619034,1756679469416,-1077.58,0.00017597,2]
[382619035,1756679469427,-172.580754,0.00017597,2]
[382619036,1756679469436,-480.0,0.00017597,2]
[382619037,1756679469446,-2435.07,0.00017597,2]
[382619038,1756679469456,-259.411577,0.00017597,2]
[382619039,1756679469466,-151.0,0.00017597,2]
[382619040,1756679469475,-274.933796,0.00017597,2]
[382619041,1756679469484,-1113.46,0.00017597,2]
[382619042,1756679469494,-284.048892,0.00017597,2]
[382619043,1756679469503,-274.933796,0.00017597,2]
[382619044,1756679469512,-274.933796,0.00017597,2]
[382619045,1756679469522,-274.93379194,0.00017597,2]
[382619046,1756679469532,-258.097144,0.00017598,2]
[382619047,1756679469541,-155.676676,0.00017598,2]
[382619048,1756679469551,-155.676676,0.00017598,2]
[382619049,1756679469560,-155.676676,0.00017598,2]
[382619050,1756679469570,-155.676676,0.00017598,2]
[382619051,1756679469580,-480.0,0.00017598,2]
[382619052,1756679469590,-480.0,0.00017598,2]
[382619053,1756679469599,-574.56,0.00017598,2]
[382619054,1756679469610,-480.0,0.00017598,2]
[382619055,1756679469621,-480.0,0.00017598,2]
[382619056,1756679469631,-480.0,0.00017598,2]
[382619057,1756679469641,-480.0,0.00017598,2]
[382619058,1756679469651,-480.0,0.00017598,2]
[382619059,1756679469660,-949.34,0.00017598,2]
[382619060,1756679469670,-480.0,0.00017598,2]
[382619061,1756679469679,-480.0,0.00017598,2]
[382619062,1756679469689,-487.45,0.00017598,2]
[382619063,1756679469699,-480.0,0.00017598,2]
[382619064,1756679469710,-734.1,0.00017598,2]
[382619065,1756679469721,-480.0,0.00017598,2]
[382619066,1756679469731,-480.0,0.00017598,2]
[382619067,1756679469741,-480.0,0.00017598,2]
[382619068,1756679469751,-1123.32,0.00017598,2]
[382619069,1756679469762,-540.81,0.00017598,2]
[382619070,1756679469774,-480.0,0.00017598,2]
[382619071,1756679469784,-480.0,0.00017598,2]
[382619072,1756679469794,-547.13,0.00017598,2]
[382619073,1756679469804,-480.0,0.00017598,2]
[382619074,1756679469815,-480.0,0.00017598,2]
[382619075,1756679469826,-483.62,0.00017598,2]
[382619076,1756679469836,-480.0,0.00017598,2]
[382619077,1756679469846,-480.0,0.00017598,2]
[382619078,1756679469856,-735.23,0.00017598,2]
[382619079,1756679469865,-845.48,0.00017598,2]
[382619080,1756679469875,-678.42,0.00017598,2]
[382619081,1756679469884,-480.0,0.00017598,2]
[382619082,1756679469894,-480.0,0.00017598,2]
[382619083,1756679469903,-480.0,0.00017598,2]
[382619084,1756679469912,-480.0,0.00017598,2]
[382619085,1756679469922,-546.32,0.00017598,2]
[382619086,1756679469932,-480.0,0.00017598,2]
[382619087,1756679469941,-703.43,0.00017598,2]
[382619088,1756679469950,-480.0,0.00017598,2]
[382619089,1756679469960,-895.19,0.00017598,2]
[382619090,1756679469970,-1584.81,0.00017598,2]
[382619091,1756679469980,-151.0,0.00017598,2]
[382619092,1756679469990,-158.813232,0.00017598,2]
[382619093,1756679469999,-480.0,0.00017598,2]
[382619094,1756679470008,-620.96,0.00017598,2]
[382619095,1756679470018,-151.0,0.00017598,2]
[382619096,1756679470029,-480.0,0.00017598,2]
[382619097,1756679470038,-151.0,0.000176,2]
[382619098,1756679470048,-2098.79470144,0.000176,2]
[382619099,1756679470058,-2309.0,0.00017608,2]
[382619100,1756679470067,-46855.2513731,0.00017611,2]
[382619101,1756679470078,-1505.3813858,0.00017611,2]
[382619102,1756679470089,-151.0,0.00017611,2]
[382619103,1756679470099,-151.0,0.00017611,2]
[382619104,1756679470108,-152.0,0.00017611,2]
[382619105,1756679470118,-345.358856,0.00017611,2]
[382619106,1756679470128,-345.358856,0.00017611,2]
[382619107,1756679470138,-345.358856,0.00017611,2]
[382619108,1756679470147,-345.358852,0.00017611,2]
[382619109,1756679470157,-151.0,0.00017611,2]
[382619110,1756679470166,-196.009368,0.00017611,2]
[382619111,1756679470176,-196.009368,0.00017611,2]
[382619112,1756679470186,-196.009368,0.00017611,2]
[382619113,1756679470196,-196.009368,0.00017611,2]
[382619114,1756679470208,-500.0,0.00017615,2]
[382619115,1756679470218,-1004.30330387,0.00017621,2]
[382619116,1756679470228,-1000.0,0.00017621,2]
[382619117,1756679470238,-538.11085264,0.00017621,2]
[382619118,1756679470249,-1342.82143569,0.00017685,2]
[382619119,1756679470266,-151.0,0.00017725,2]
[382619120,1756679470278,-151.0,0.00017725,2]
[382619121,1756679470288,-159.342596,0.00017725,2]
[382619122,1756679470299,-159.342596,0.00017725,2]
[382619123,1756679470308,-159.342596,0.00017725,2]
[382619124,1756679470318,-159.342596,0.00017725,2]
[382619125,1756679470328,-975.0,0.00017726,2]
[382619126,1756679470340,-632.0,0.00017726,2]
[382619127,1756679470350,-2152.0,0.00017726,2]
[382619128,1756679470359,-409.0,0.00017726,2]
[382619129,1756679470370,-422.354,0.00017726,2]
[382619130,1756679470381,-201.47398277,0.00017739,2]
[382619131,1756679470391,-604.89400285,0.00017739,2]
[382619132,1756679470402,-377.16940656,0.00017766,2]
[382619133,1756679470413,-934.58820105,0.00017766,2]
[382619134,1756679470422,-480.0,0.00017769,2]
[382619135,1756679470433,-742.71,0.00017769,2]
[382619136,1756679470444,-480.0,0.00017769,2]
[382619137,1756679470454,-480.0,0.00017769,2]
[382619138,1756679470464,-480.0,0.00017769,2]
[382619139,1756679470474,-480.0,0.00017769,2]
[382619140,1756679470484,-998.97,0.00017769,2]
[382619141,1756679470494,-480.0,0.00017769,2]
[382619142,1756679470504,-480.0,0.00017769,2]
[382619143,1756679470514,-354.6879656,0.00017769,2]
[382619144,1756679470524,-480.0,0.00017769,2]
[382619145,1756679470534,-758.3,0.00017769,2]
[382619146,1756679470544,-155.599794,0.00017769,2]
[382619147,1756679470554,-727.58,0.00017769,2]
[382619148,1756679470564,-151.0,0.00017769,2]
[382619149,1756679470574,-610.94,0.00017769,2]
[382619150,1756679470584,-789.86,0.00017769,2]
[382619151,1756679470594,-480.0,0.00017769,2]
[382619152,1756679470603,-943.21,0.00017769,2]
[382619153,1756679470613,-480.0,0.00017769,2]
[382619154,1756679470623,-912.78,0.00017769,2]
[382619155,1756679470633,-151.0,0.00017769,2]
[382619156,1756679470643,-151.0,0.00017769,2]
[382619157,1756679470652,-480.0,0.00017769,2]
[382619158,1756679470662,-151.0,0.00017769,2]
[382619159,1756679470672,-151.0,0.00017769,2]
[382619160,1756679470682,-480.0,0.00017769,2]
[382619161,1756679470692,-480.0,0.00017769,2]
[382619162,1756679470702,-501.85,0.00017769,2]
[382619163,1756679470711,-480.0,0.00017769,2]
[382619164,1756679470721,-801.5,0.00017769,2]
[382619165,1756679470731,-914.88,0.00017769,2]
[382619166,1756679470740,-929.01,0.00017769,2]
[382619167,1756679470750,-988.27,0.00017769,2]
[382619168,1756679470760,-480.0,0.00017769,2]
[382619169,1756679470769,-480.0,0.00017769,2]
[382619170,1756679470779,-1109.5,0.00017769,2]
[382619171,1756679470788,-926.74,0.00017769,2]
[382619172,1756679470798,-480.0,0.00017769,2]
[382619173,1756679470807,-480.0,0.00017769,2]
[382619174,1756679470816,-480.0,0.00017769,2]
[382619175,1756679470826,-480.0,0.00017769,2]
[382619176,1756679470835,-480.0,0.00017769,2]
[382619177,1756679470844,-480.0,0.00017769,2]
[382619178,1756679470854,-1718.87,0.00017769,2]
[382619179,1756679470864,-480.0,0.00017769,2]
[382619180,1756679470874,-480.0,0.00017769,2]
[382619181,1756679470885,-606.05,0.00017769,2]
[382619182,1756679470895,-480.0,0.00017769,2]
[382619183,1756679470905,-480.0,0.00017769,2]
[382619184,1756679470914,-1152.04,0.00017769,2]
[382619185,1756679470923,-480.0,0.00017769,2]
[382619186,1756679470932,-15524.26328136,0.00017773,2]
[382619187,1756679470942,-425.0,0.00017793,2]
[382619188,1756679470952,-151.0,0.000178,2]
[382619189,1756679470962,-151.0,0.000178,2]
[382619190,1756679470971,-151.0,0.000178,2]
[382619191,1756679470981,-3021.34823031,0.00017804,2]
[382619192,1756679470990,-500.0,0.00017811,2]
[382619193,1756679471001,-500.0,0.00017811,2]
[382619194,1756679471011,-151.0,0.00017811,2]
[382619195,1756679471021,-200.0,0.00017811,3]
[382619196,1756679471031,-200.0,0.00017811,3]
[382619197,1756679471040,-200.0,0.00017811,3]
[382619198,1756679471050,-200.0,0.00017811,3]
[382619199,1756679471060,-200.0,0.00017811,3]
[382619200,1756679471070,-150.0,0.00017811,2]
[382619201,1756679471079,-182.531,0.00017811,2]
[382619202,1756679471089,-207.93,0.00017811,2]
[382619203,1756679471099,-150.134,0.00017811,2]
[382619204,1756679471109,-150.0,0.00017811,2]
[382619205,1756679471119,-255.159,0.00017811,2]
[382619206,1756679471129,-150.0,0.00017811,2]
[382619207,1756679471139,-187.2916484,0.00017833,2]
[382619208,1756679471149,-425.0,0.00017861,2]
[382619209,1756679471159,-419.78,0.00017861,3]
[382619210,1756679471168,-839.58,0.00017862,3]
[382619211,1756679471180,-425.0,0.00017867,2]
[382619212,1756679471190,-1507.76408597,0.00017868,2]
[382619213,1756679471199,-1500.0,0.00017868,2]
[382619214,1756679471210,-1500.0,0.00017868,2]
[382619215,1756679471221,-1500.0,0.00017868,2]
[382619216,1756679471231,-1500.0,0.00017868,2]
[382619217,1756679471241,-1500.0,0.00017868,2]
[382619218,1756679471251,-247.69653566,0.00017868,2]
[382619219,1756679471261,-1500.0,0.00017868,2]
[382619220,1756679471271,-1500.0,0.00017868,2]
[382619221,1756679471281,-1079.34668092,0.00017868,2]
[382619222,1756679471291,-1305.30206249,0.00017868,2]
[382619223,1756679471301,-501.5677558,0.00017868,2]
[382619224,1756679471311,-1500.0,0.00017868,2]
[382619225,1756679471320,-185.1443859,0.00017868,2]
[382619226,1756679471330,-1500.0,0.00017868,2]
[382619227,1756679471340,-1500.0,0.00017868,2]
[382619228,1756679471350,-1500.0,0.00017868,2]
[382619229,1756679471361,-1500.0,0.00017868,2]
[382619230,1756679471371,-1500.0,0.00017868,2]
[382619231,1756679471382,-1500.0,0.00017868,2]
[382619232,1756679471391,-1873.42,0.00017869,2]
[382619233,1756679471400,-480.0,0.00017869,2]
[382619234,1756679471411,-1038.32,0.00017869,2]
[382619235,1756679471422,-660.29,0.00017869,2]
[382619236,1756679471579,-1302.48,0.00017869,2]
[382619237,1756679471596,-480.0,0.00017869,2]
[382619238,1756679471606,-480.0,0.00017869,2]
[382619239,1756679471615,-604.96,0.00017869,2]
[382619240,1756679471624,-7498.36034503,0.0001787,2]
[382619241,1756679471634,-623.86,0.0001787,2]
[382619242,1756679471644,-788.33,0.0001787,2]
[382619243,1756679471653,-480.0,0.0001787,2]
[382619244,1756679471663,-480.0,0.0001787,2]
[382619245,1756679471673,-523.58,0.0001787,2]
[382619246,1756679471682,-480.0,0.0001787,2]
[382619247,1756679471692,-480.0,0.0001787,2]
[382619248,1756679471702,-480.0,0.0001787,2]
[382619249,1756679471711,-480.0,0.0001787,2]
[382619250,1756679471720,-480.0,0.0001787,2]